[Event "*** Titled Tuesday Blitz"]
[Site "Chess.com"]
[Date "2019.08.06"]
[Round "1"]
[White "LarissaSteenbekkers"]
[Black "Oleg_Papayan"]
[Result "0-1"]
[WhiteElo "1809"]
[BlackElo "2517"]
[TimeControl "180+2"]
[EndTime "13:06:20 PDT"]
[Termination "Oleg_Papayan won by resignation"]

1. e4 {[%clk 0:02:58.5]} 1... c5 {[%clk 0:03:00.2]} 2. Nf3 {[%clk 0:02:58.8]}
2... Nc6 {[%clk 0:03:01.6]} 3. d4 {[%clk 0:02:58.3]} 3... cxd4 {[%clk
0:03:03.5]} 4. Nxd4 {[%clk 0:02:59]} 4... Nf6 {[%clk 0:03:04.8]} 5. Nc3 {[%clk
0:02:58.2]} 5... d6 {[%clk 0:03:05.5]} 6. Bg5 {[%clk 0:02:54.8]} 6... Qa5 {[%clk
0:03:03]} 7. Bxf6 {[%clk 0:02:46.8]} 7... gxf6 {[%clk 0:03:03.7]} 8. Nb3 {[%clk
0:02:46.6]} 8... Qb6 {[%clk 0:03:02.7]} 9. Bd3 {[%clk 0:02:41.9]} 9... Be6
{[%clk 0:02:59.1]} 10. O-O {[%clk 0:02:40.5]} 10... a6 {[%clk 0:02:56.3]} 11.
Kh1 {[%clk 0:02:40.6]} 11... O-O-O {[%clk 0:02:56.6]} 12. f4 {[%clk 0:02:40.1]}
12... Rg8 {[%clk 0:02:57.9]} 13. f5 {[%clk 0:02:40]} 13... Bd7 {[%clk
0:02:58.7]} 14. Nd5 {[%clk 0:02:40.5]} 14... Qa7 {[%clk 0:02:59.1]} 15. a4
{[%clk 0:02:36.1]} 15... Ne5 {[%clk 0:02:38.3]} 16. a5 {[%clk 0:02:35.7]} 16...
Bc6 {[%clk 0:02:39.8]} 17. Nb6+ {[%clk 0:02:34.4]} 17... Kc7 {[%clk 0:02:39.7]}
18. c4 {[%clk 0:02:33.4]} 18... Nd7 {[%clk 0:02:40.1]} 19. Bc2 {[%clk
0:02:25.6]} 19... Nxb6 {[%clk 0:02:40.3]} 20. axb6+ {[%clk 0:02:24.6]} 20...
Qxb6 {[%clk 0:02:42.2]} 21. Qe1 {[%clk 0:02:23.2]} 21... Bh6 {[%clk 0:02:37.6]}
22. Na5 {[%clk 0:02:20.9]} 22... Rg4 {[%clk 0:02:24.7]} 23. b4 {[%clk
0:02:18.8]} 23... Rdg8 {[%clk 0:02:23.3]} 24. g3 {[%clk 0:02:17.9]} 24... Qe3
{[%clk 0:02:12.5]} 25. Nxc6 {[%clk 0:02:14.8]} 25... Qxe1 {[%clk 0:02:03.2]} 26.
Rfxe1 {[%clk 0:02:12.1]} 26... Kxc6 {[%clk 0:02:05.1]} 27. Bd3 {[%clk
0:02:11.1]} 27... Bd2 {[%clk 0:02:04.1]} 28. b5+ {[%clk 0:02:09.2]} 28... axb5
{[%clk 0:02:03.3]} 29. cxb5+ {[%clk 0:02:09.4]} 29... Kb6 {[%clk 0:02:04.8]} 30.
Re2 {[%clk 0:02:09.2]} 30... Bb4 {[%clk 0:02:04.1]} 31. Rc2 {[%clk 0:02:08.1]}
31... Bc5 {[%clk 0:02:05.3]} 32. Kg2 {[%clk 0:02:04]} 32... h5 {[%clk
0:02:06.6]} 33. Kf3 {[%clk 0:02:04.1]} 33... h4 {[%clk 0:02:07.2]} 34. Rg2
{[%clk 0:01:55.8]} 34... Bd4 {[%clk 0:02:05.5]} 35. Rc1 {[%clk 0:01:50.7]} 35...
Be5 {[%clk 0:02:05.1]} 36. Rcg1 {[%clk 0:01:49.3]} 36... hxg3 {[%clk 0:02:04.5]}
37. hxg3 {[%clk 0:01:48.6]} 37... R4g5 {[%clk 0:02:06]} 38. g4 {[%clk
0:01:46.7]} 38... Ra8 {[%clk 0:02:06.1]} 39. Re1 {[%clk 0:01:40.8]} 39... Ra3
{[%clk 0:02:06.8]} 40. Rd1 {[%clk 0:01:40.7]} 40... Rg8 {[%clk 0:02:05.3]} 41.
Ke2 {[%clk 0:01:39.8]} 41... Bd4 {[%clk 0:02:03]} 42. Bc4 {[%clk 0:01:37.3]}
42... Re3+ {[%clk 0:02:03.5]} 43. Kd2 {[%clk 0:01:33.7]} 43... Rxe4 {[%clk
0:02:03.4]} 44. Bxf7 {[%clk 0:01:33.1]} 44... Rgxg4 {[%clk 0:02:02.2]} 45. Rxg4
{[%clk 0:01:32.2]} 45... Rxg4 {[%clk 0:02:04.1]} 46. Be6 {[%clk 0:01:31.7]}
46... Kxb5 {[%clk 0:01:59.8]} 47. Rb1+ {[%clk 0:01:31.1]} 47... Kc6 {[%clk
0:02:01]} 48. Bc8 {[%clk 0:01:29.7]} 48... b5 {[%clk 0:01:59.6]} 49. Be6 {[%clk
0:01:29.1]} 49... Bc5 {[%clk 0:01:58.6]} 0-1

[Event "*** Titled Tuesday Blitz"]
[Site "Chess.com"]
[Date "2019.08.06"]
[Round "1"]
[White "gmcorrales"]
[Black "GuerrieroFromLevant"]
[Result "1-0"]
[WhiteElo "2743"]
[BlackElo "2381"]
[TimeControl "180+2"]
[EndTime "13:06:25 PDT"]
[Termination "gmcorrales won by resignation"]

1. c4 {[%clk 0:02:46.2]} 1... e6 {[%clk 0:03:00.5]} 2. Nf3 {[%clk 0:02:46.1]}
2... d5 {[%clk 0:02:56.1]} 3. d4 {[%clk 0:02:45.4]} 3... c5 {[%clk 0:02:55.9]}
4. cxd5 {[%clk 0:02:45.8]} 4... exd5 {[%clk 0:02:57.8]} 5. g3 {[%clk 0:02:47]}
5... Nc6 {[%clk 0:02:58.5]} 6. Bg2 {[%clk 0:02:47.3]} 6... Nf6 {[%clk
0:02:59.6]} 7. O-O {[%clk 0:02:47.7]} 7... Be7 {[%clk 0:03:00.6]} 8. dxc5 {[%clk
0:02:48.5]} 8... Bxc5 {[%clk 0:03:01.2]} 9. a3 {[%clk 0:02:50.1]} 9... Ne4
{[%clk 0:03:00.9]} 10. b4 {[%clk 0:02:47.4]} 10... Be7 {[%clk 0:03:01]} 11. Bb2
{[%clk 0:02:48.1]} 11... Bf6 {[%clk 0:03:02.4]} 12. Bxf6 {[%clk 0:02:20]} 12...
Qxf6 {[%clk 0:03:04.3]} 13. Qxd5 {[%clk 0:02:18.8]} 13... Be6 {[%clk 0:03:00.9]}
14. Qxe4 {[%clk 0:02:19]} 14... Qxa1 {[%clk 0:03:02.1]} 15. b5 {[%clk
0:02:20.1]} 15... Nd8 {[%clk 0:03:03.1]} 16. Ng5 {[%clk 0:00:55]} 16... Qf6
{[%clk 0:02:56.6]} 17. h4 {[%clk 0:00:55.6]} 17... h6 {[%clk 0:02:53.1]} 18.
Nxe6 {[%clk 0:00:52.3]} 18... Qxe6 {[%clk 0:02:51.6]} 19. Qd3 {[%clk 0:00:42.2]}
19... O-O {[%clk 0:02:48.6]} 20. Nc3 {[%clk 0:00:43.3]} 20... Rc8 {[%clk
0:02:45]} 21. Nd5 {[%clk 0:00:42.9]} 21... Qd6 {[%clk 0:02:33.4]} 22. Rd1 {[%clk
0:00:42.7]} 22... Qc5 {[%clk 0:02:22.6]} 23. Qf5 {[%clk 0:00:42.7]} 23... Ne6
{[%clk 0:02:14.2]} 24. Be4 {[%clk 0:00:42.2]} 24... g6 {[%clk 0:02:15.5]} 25.
Qf6 {[%clk 0:00:43.5]} 25... Kh7 {[%clk 0:01:47.6]} 26. h5 {[%clk 0:00:42.4]}
26... Ng5 {[%clk 0:01:10.8]} 27. hxg6+ {[%clk 0:00:42]} 27... Kg8 {[%clk
0:01:02.8]} 28. Ne7+ {[%clk 0:00:42.6]} 1-0

[Event "*** Titled Tuesday Blitz"]
[Site "Chess.com"]
[Date "2019.08.06"]
[Round "1"]
[White "Ravan_02"]
[Black "GremioPrudente"]
[Result "1-0"]
[WhiteElo "2611"]
[BlackElo "2221"]
[TimeControl "180+2"]
[EndTime "13:06:34 PDT"]
[Termination "Ravan_02 won on time"]

1. d4 {[%clk 0:03:01.4]} 1... d5 {[%clk 0:03:00.2]} 2. c4 {[%clk 0:03:02.3]}
2... c6 {[%clk 0:03:00.5]} 3. Nc3 {[%clk 0:03:02.9]} 3... e6 {[%clk 0:03:00.8]}
4. Nf3 {[%clk 0:03:03]} 4... dxc4 {[%clk 0:03:01]} 5. a4 {[%clk 0:03:00.3]} 5...
Bb4 {[%clk 0:03:01.3]} 6. e3 {[%clk 0:02:59.4]} 6... b5 {[%clk 0:03:02.2]} 7.
Ne5 {[%clk 0:02:53.7]} 7... Nf6 {[%clk 0:02:05.2]} 8. Bd2 {[%clk 0:02:31.8]}
8... Bxc3 {[%clk 0:01:58.9]} 9. Bxc3 {[%clk 0:02:27.2]} 9... Bb7 {[%clk
0:01:59.9]} 10. axb5 {[%clk 0:02:00.9]} 10... cxb5 {[%clk 0:02:00.4]} 11. Bb4
{[%clk 0:02:02.4]} 11... a5 {[%clk 0:01:48.2]} 12. Bc5 {[%clk 0:01:59.7]} 12...
Qc7 {[%clk 0:01:39]} 13. b3 {[%clk 0:02:00.6]} 13... Nbd7 {[%clk 0:01:31.4]} 14.
Nxd7 {[%clk 0:02:01.3]} 14... Nxd7 {[%clk 0:01:32.1]} 15. Ba3 {[%clk 0:01:30.7]}
15... b4 {[%clk 0:01:32.5]} 16. Bc1 {[%clk 0:01:31.4]} 16... c3 {[%clk
0:01:32.6]} 17. Qg4 {[%clk 0:01:22.4]} 17... O-O {[%clk 0:01:26.3]} 18. Bd3
{[%clk 0:01:23.5]} 18... Nf6 {[%clk 0:01:25.3]} 19. Qh4 {[%clk 0:01:23.8]} 19...
g6 {[%clk 0:01:19.6]} 20. Qxf6 {[%clk 0:01:23.8]} 20... Rfd8 {[%clk 0:01:08.3]}
21. O-O {[%clk 0:01:15.6]} 21... Qc6 {[%clk 0:01:08]} 22. e4 {[%clk 0:01:16.5]}
22... Rd6 {[%clk 0:00:12.2]} 23. Bh6 {[%clk 0:01:14.9]} 1-0

[Event "*** Titled Tuesday Blitz"]
[Site "Chess.com"]
[Date "2019.08.06"]
[Round "1"]
[White "Infernal_XaM"]
[Black "JMatias"]
[Result "0-1"]
[WhiteElo "2831"]
[BlackElo "2449"]
[TimeControl "180+2"]
[EndTime "13:06:35 PDT"]
[Termination "JMatias won by resignation"]

1. c4 {[%clk 0:03:01.2]} 1... e6 {[%clk 0:03:00.3]} 2. Nc3 {[%clk 0:03:01.9]}
2... d5 {[%clk 0:02:56.1]} 3. e3 {[%clk 0:03:02.7]} 3... Nf6 {[%clk 0:02:52.4]}
4. g4 {[%clk 0:03:02.6]} 4... Be7 {[%clk 0:02:46.2]} 5. g5 {[%clk 0:03:02.2]}
5... Ne4 {[%clk 0:02:28.8]} 6. Nxe4 {[%clk 0:03:01.7]} 6... dxe4 {[%clk
0:02:30.7]} 7. h4 {[%clk 0:03:02.9]} 7... b6 {[%clk 0:02:23.4]} 8. Bg2 {[%clk
0:03:01.3]} 8... Bb7 {[%clk 0:02:24.4]} 9. Qc2 {[%clk 0:03:00.7]} 9... Na6
{[%clk 0:02:20.5]} 10. Bxe4 {[%clk 0:03:01.2]} 10... Nb4 {[%clk 0:02:17.7]} 11.
Qa4+ {[%clk 0:03:01.2]} 11... c6 {[%clk 0:02:06.1]} 12. a3 {[%clk 0:03:01.4]}
12... Nd3+ {[%clk 0:02:06.6]} 13. Ke2 {[%clk 0:03:01.8]} 13... Nc5 {[%clk
0:02:04.7]} 14. Qc2 {[%clk 0:02:56.1]} 14... Nxe4 {[%clk 0:02:05.4]} 15. Qxe4
{[%clk 0:02:56.8]} 15... Qd7 {[%clk 0:02:06]} 16. Nf3 {[%clk 0:02:30.8]} 16...
c5 {[%clk 0:02:06.9]} 17. Qf4 {[%clk 0:02:32]} 17... O-O {[%clk 0:02:06.5]} 18.
Rg1 {[%clk 0:02:24.8]} 18... f6 {[%clk 0:02:03]} 19. gxf6 {[%clk 0:02:16.2]}
19... Rxf6 {[%clk 0:02:03.4]} 20. Ne5 {[%clk 0:02:16.6]} 20... Qc7 {[%clk
0:01:55.5]} 21. Qg3 {[%clk 0:02:15.5]} 21... Bd6 {[%clk 0:01:56.4]} 22. f4
{[%clk 0:01:58.9]} 22... Bxe5 {[%clk 0:01:57.2]} 23. fxe5 {[%clk 0:01:59.9]}
23... Rf5 {[%clk 0:01:58.7]} 24. b3 {[%clk 0:01:50.4]} 24... Raf8 {[%clk
0:01:27.8]} 25. Bb2 {[%clk 0:01:49.4]} 25... Bf3+ {[%clk 0:01:26.5]} 26. Ke1
{[%clk 0:01:34.3]} 26... Bh5 {[%clk 0:01:23.9]} 27. Bc3 {[%clk 0:01:28.8]} 27...
Qf7 {[%clk 0:01:24]} 28. Qh3 {[%clk 0:00:37.9]} 28... Rf2 {[%clk 0:01:21.5]} 0-1

[Event "*** Titled Tuesday Blitz"]
[Site "Chess.com"]
[Date "2019.08.06"]
[Round "1"]
[White "Airquake"]
[Black "ChessNinja48"]
[Result "1-0"]
[WhiteElo "2620"]
[BlackElo "2231"]
[TimeControl "180+2"]
[EndTime "13:06:41 PDT"]
[Termination "Airquake won by resignation"]

1. g3 {[%clk 0:02:58.9]} 1... Nf6 {[%clk 0:03:00.7]} 2. Bg2 {[%clk 0:02:49.9]}
2... e6 {[%clk 0:03:01]} 3. Nf3 {[%clk 0:02:48.9]} 3... d5 {[%clk 0:03:02.4]} 4.
O-O {[%clk 0:02:50.8]} 4... Be7 {[%clk 0:03:04.1]} 5. d3 {[%clk 0:02:44.9]} 5...
O-O {[%clk 0:03:04.9]} 6. b3 {[%clk 0:02:46.3]} 6... c5 {[%clk 0:03:02.3]} 7.
Bb2 {[%clk 0:02:48.2]} 7... Nc6 {[%clk 0:03:03.3]} 8. Nbd2 {[%clk 0:02:49.4]}
8... b5 {[%clk 0:03:01]} 9. e4 {[%clk 0:02:50.5]} 9... a5 {[%clk 0:02:41.4]} 10.
Re1 {[%clk 0:02:41.3]} 10... a4 {[%clk 0:02:14.4]} 11. Ne5 {[%clk 0:02:42.1]}
11... Bb7 {[%clk 0:01:51]} 12. exd5 {[%clk 0:02:32.3]} 12... exd5 {[%clk
0:01:50.6]} 13. c4 {[%clk 0:02:28.4]} 13... a3 {[%clk 0:01:42.6]} 14. Nxc6
{[%clk 0:02:29]} 14... Bxc6 {[%clk 0:01:43.3]} 15. Be5 {[%clk 0:02:30.9]} 15...
Qd7 {[%clk 0:01:24.3]} 16. Rc1 {[%clk 0:02:19.2]} 16... bxc4 {[%clk 0:01:00.1]}
17. dxc4 {[%clk 0:02:19.8]} 17... d4 {[%clk 0:01:00.6]} 18. Qc2 {[%clk
0:01:57.3]} 18... Bxg2 {[%clk 0:01:00.6]} 19. Kxg2 {[%clk 0:01:59.2]} 19... d3
{[%clk 0:00:57.1]} 20. Qc3 {[%clk 0:01:58.1]} 20... Rad8 {[%clk 0:00:57]} 21. f3
{[%clk 0:01:56.6]} 21... Rfe8 {[%clk 0:00:56.8]} 22. Rcd1 {[%clk 0:01:56.6]}
22... Qf5 {[%clk 0:00:57.9]} 23. Re3 {[%clk 0:01:47.2]} 23... Nd7 {[%clk
0:00:46.5]} 24. Bc7 {[%clk 0:01:37.2]} 24... Bg5 {[%clk 0:00:33.3]} 25. Qxd3
{[%clk 0:01:35]} 25... Qf6 {[%clk 0:00:06.5]} 26. Rxe8+ {[%clk 0:01:18]} 26...
Rxe8 {[%clk 0:00:06.8]} 1-0

[Event "*** Titled Tuesday Blitz"]
[Site "Chess.com"]
[Date "2019.08.06"]
[Round "1"]
[White "ChessyInstinct"]
[Black "Gareth-Bale11"]
[Result "0-1"]
[WhiteElo "2380"]
[BlackElo "2729"]
[TimeControl "180+2"]
[EndTime "13:06:42 PDT"]
[Termination "Gareth-Bale11 won by resignation"]

1. d4 {[%clk 0:03:01.9]} 1... Nf6 {[%clk 0:03:00.2]} 2. c4 {[%clk 0:03:02.6]}
2... e6 {[%clk 0:03:01.4]} 3. g3 {[%clk 0:03:03.7]} 3... d5 {[%clk 0:03:00.4]}
4. Nf3 {[%clk 0:03:04.7]} 4... Bb4+ {[%clk 0:03:00.6]} 5. Bd2 {[%clk 0:03:05.2]}
5... Be7 {[%clk 0:03:01.4]} 6. Bg2 {[%clk 0:03:05.6]} 6... O-O {[%clk
0:03:02.2]} 7. O-O {[%clk 0:03:06.1]} 7... Nbd7 {[%clk 0:03:03.4]} 8. Qc2 {[%clk
0:03:06.6]} 8... Ne4 {[%clk 0:03:04.5]} 9. Nc3 {[%clk 0:03:06]} 9... Nxd2 {[%clk
0:03:05.1]} 10. Nxd2 {[%clk 0:03:07.9]} 10... c6 {[%clk 0:03:06.6]} 11. e4
{[%clk 0:03:08.1]} 11... dxe4 {[%clk 0:03:07.4]} 12. Ndxe4 {[%clk 0:03:10]}
12... f5 {[%clk 0:03:09]} 13. Nd2 {[%clk 0:03:09]} 13... e5 {[%clk 0:03:10.2]}
14. Nb3 {[%clk 0:03:03.9]} 14... Qc7 {[%clk 0:03:04.8]} 15. d5 {[%clk
0:03:01.1]} 15... e4 {[%clk 0:03:05.2]} 16. Nd4 {[%clk 0:02:51]} 16... Ne5
{[%clk 0:03:00.5]} 17. b3 {[%clk 0:02:41.6]} 17... Bd7 {[%clk 0:02:57]} 18. Kh1
{[%clk 0:02:33.9]} 18... Rad8 {[%clk 0:02:52]} 19. Rae1 {[%clk 0:02:31.7]} 19...
Nd3 {[%clk 0:02:51]} 20. Rd1 {[%clk 0:02:18.3]} 20... Bc5 {[%clk 0:02:48]} 21.
Rxd3 {[%clk 0:02:11.5]} 21... exd3 {[%clk 0:02:49.9]} 22. Qxd3 {[%clk
0:02:13.4]} 22... Qe5 {[%clk 0:02:50]} 23. Nf3 {[%clk 0:02:07.6]} 23... Qf6
{[%clk 0:02:50.2]} 24. Na4 {[%clk 0:01:57]} 24... Bb4 {[%clk 0:02:44.8]} 25. Nd4
{[%clk 0:01:50.1]} 25... Rfe8 {[%clk 0:02:45.3]} 26. Nc2 {[%clk 0:01:47]} 26...
Bf8 {[%clk 0:02:45.4]} 27. Nc3 {[%clk 0:01:44.5]} 27... Bd6 {[%clk 0:02:35.5]}
28. f4 {[%clk 0:01:38.9]} 28... c5 {[%clk 0:02:36]} 29. Ne1 {[%clk 0:01:30.5]}
29... Re7 {[%clk 0:02:32.2]} 30. Nf3 {[%clk 0:01:27.9]} 30... Rde8 {[%clk
0:02:33.3]} 31. Qd2 {[%clk 0:01:07.2]} 31... h6 {[%clk 0:02:32.1]} 32. Re1
{[%clk 0:01:07.3]} 32... Rxe1+ {[%clk 0:02:32]} 33. Nxe1 {[%clk 0:01:09.2]}
33... Qd4 {[%clk 0:02:32.5]} 34. Nf3 {[%clk 0:01:01.7]} 34... Qxd2 {[%clk
0:02:31.3]} 35. Nxd2 {[%clk 0:01:03.6]} 35... Re1+ {[%clk 0:02:32.6]} 36. Bf1
{[%clk 0:01:01]} 36... Bc7 {[%clk 0:02:32.6]} 37. Kg2 {[%clk 0:00:50.3]} 37...
Ba5 {[%clk 0:02:33.2]} 38. Kf2 {[%clk 0:00:51]} 38... Rc1 {[%clk 0:02:28.5]} 39.
Ncb1 {[%clk 0:00:47.8]} 39... Rc2 {[%clk 0:02:29.4]} 40. Ke3 {[%clk 0:00:48.1]}
40... Rxa2 {[%clk 0:02:29.7]} 41. Bd3 {[%clk 0:00:47]} 41... Rb2 {[%clk
0:02:28.6]} 42. h3 {[%clk 0:00:44.6]} 42... a6 {[%clk 0:02:27.5]} 43. g4 {[%clk
0:00:42.5]} 43... fxg4 {[%clk 0:02:27.9]} 44. hxg4 {[%clk 0:00:44.4]} 44... Bxg4
{[%clk 0:02:27.8]} 45. Ne4 {[%clk 0:00:44.2]} 45... Rxb3 {[%clk 0:02:27.3]} 46.
Nxc5 {[%clk 0:00:44.7]} 46... Bb6 {[%clk 0:02:25.9]} 47. Kd4 {[%clk 0:00:45.2]}
47... Bxc5+ {[%clk 0:02:26.3]} 48. Kxc5 {[%clk 0:00:47.1]} 48... Rxd3 {[%clk
0:02:27.2]} 49. Kb6 {[%clk 0:00:49]} 49... Rb3+ {[%clk 0:02:27.5]} 50. Kc7
{[%clk 0:00:50.2]} 50... Rxb1 {[%clk 0:02:29.4]} 51. c5 {[%clk 0:00:51.7]} 51...
a5 {[%clk 0:02:29.1]} 52. c6 {[%clk 0:00:52.8]} 52... bxc6 {[%clk 0:02:31]} 53.
dxc6 {[%clk 0:00:54.6]} 53... a4 {[%clk 0:02:32.1]} 54. Kd8 {[%clk 0:00:55.8]}
0-1

[Event "*** Titled Tuesday Blitz"]
[Site "Chess.com"]
[Date "2019.08.06"]
[Round "1"]
[White "Korchmar_Vasiliy"]
[Black "pandamaster3000"]
[Result "1-0"]
[WhiteElo "2652"]
[BlackElo "2311"]
[TimeControl "180+2"]
[EndTime "13:06:54 PDT"]
[Termination "Korchmar_Vasiliy won by resignation"]

1. d4 {[%clk 0:02:58]} 1... Nf6 {[%clk 0:03:00.9]} 2. c4 {[%clk 0:02:58.7]} 2...
g6 {[%clk 0:03:02.5]} 3. Nc3 {[%clk 0:02:59.4]} 3... Bg7 {[%clk 0:03:04.1]} 4.
e4 {[%clk 0:03:00.7]} 4... d6 {[%clk 0:03:05.7]} 5. h3 {[%clk 0:03:02]} 5... O-O
{[%clk 0:03:06.7]} 6. Nf3 {[%clk 0:03:03.5]} 6... e5 {[%clk 0:03:07.8]} 7. d5
{[%clk 0:03:04.9]} 7... a5 {[%clk 0:03:08.4]} 8. g4 {[%clk 0:03:05.5]} 8... Na6
{[%clk 0:03:05.7]} 9. Be3 {[%clk 0:03:06.2]} 9... c6 {[%clk 0:03:01.3]} 10. Be2
{[%clk 0:03:05.3]} 10... cxd5 {[%clk 0:03:00.8]} 11. cxd5 {[%clk 0:03:07.2]}
11... Bd7 {[%clk 0:02:55]} 12. Nd2 {[%clk 0:03:07]} 12... Rc8 {[%clk 0:02:47.5]}
13. g5 {[%clk 0:03:07.1]} 13... Ne8 {[%clk 0:02:41.7]} 14. h4 {[%clk 0:03:08.4]}
14... f5 {[%clk 0:02:19.2]} 15. f3 {[%clk 0:03:09.5]} 15... Nc5 {[%clk
0:02:13.9]} 16. Rg1 {[%clk 0:03:05.2]} 16... Kh8 {[%clk 0:02:08.7]} 17. Nb3
{[%clk 0:02:36.4]} 17... b6 {[%clk 0:02:06.4]} 18. h5 {[%clk 0:02:29.6]} 18...
f4 {[%clk 0:01:58]} 19. Bxc5 {[%clk 0:02:28]} 19... bxc5 {[%clk 0:01:52.7]} 20.
h6 {[%clk 0:02:29.4]} 20... c4 {[%clk 0:01:53.5]} 21. hxg7+ {[%clk 0:02:29.9]}
21... Nxg7 {[%clk 0:01:55.4]} 22. Nd2 {[%clk 0:02:30.5]} 22... Qb6 {[%clk
0:01:51.2]} 23. Rh1 {[%clk 0:02:19.1]} 23... Qxb2 {[%clk 0:01:50.8]} 24. Qc1
{[%clk 0:02:18.1]} 24... Qb4 {[%clk 0:01:45.6]} 25. Kf2 {[%clk 0:01:52.9]} 25...
Qc5+ {[%clk 0:01:40]} 26. Kg2 {[%clk 0:01:54.1]} 26... Nh5 {[%clk 0:01:38.1]}
27. Nf1 {[%clk 0:01:49.3]} 27... Qc7 {[%clk 0:01:25.6]} 28. Qe1 {[%clk
0:01:42.9]} 28... Rb8 {[%clk 0:01:24.6]} 29. Nd1 {[%clk 0:01:32.6]} 29... Qc5
{[%clk 0:01:19.5]} 30. Rc1 {[%clk 0:01:31.7]} 30... Bb5 {[%clk 0:01:17]} 31.
Qxa5 {[%clk 0:01:18.9]} 31... Ra8 {[%clk 0:01:13.2]} 32. Qd2 {[%clk 0:01:19.8]}
32... Ra3 {[%clk 0:01:03.6]} 33. Nc3 {[%clk 0:01:15]} 33... Ba6 {[%clk
0:01:04.6]} 34. Qb2 {[%clk 0:01:13.7]} 34... Ra5 {[%clk 0:01:01.9]} 35. Rb1
{[%clk 0:01:12.3]} 35... Qd4 {[%clk 0:00:57.7]} 36. Qb4 {[%clk 0:01:03.7]} 36...
Rc5 {[%clk 0:00:58.7]} 37. Rd1 {[%clk 0:01:04.7]} 1-0

[Event "*** Titled Tuesday Blitz"]
[Site "Chess.com"]
[Date "2019.08.06"]
[Round "1"]
[White "Morscas"]
[Black "Gubajdullin"]
[Result "0-1"]
[WhiteElo "2181"]
[BlackElo "2583"]
[TimeControl "180+2"]
[EndTime "13:06:58 PDT"]
[Termination "Gubajdullin won by resignation"]

1. e4 {[%clk 0:02:59.7]} 1... c6 {[%clk 0:02:59.9]} 2. d4 {[%clk 0:02:55.9]}
2... d5 {[%clk 0:03:00.7]} 3. e5 {[%clk 0:02:57]} 3... Bf5 {[%clk 0:03:00.7]} 4.
Nf3 {[%clk 0:02:44.5]} 4... e6 {[%clk 0:02:57.9]} 5. Be2 {[%clk 0:02:43.6]} 5...
Nd7 {[%clk 0:02:55.8]} 6. O-O {[%clk 0:02:44.1]} 6... h6 {[%clk 0:02:56.2]} 7.
b3 {[%clk 0:02:38.4]} 7... Ne7 {[%clk 0:02:53.3]} 8. c4 {[%clk 0:02:27.9]} 8...
Bh7 {[%clk 0:02:51.4]} 9. Ba3 {[%clk 0:02:16]} 9... Ng6 {[%clk 0:02:51.3]} 10.
Bxf8 {[%clk 0:02:15.9]} 10... Ngxf8 {[%clk 0:02:49.8]} 11. Nc3 {[%clk
0:02:16.2]} 11... Ng6 {[%clk 0:02:50.2]} 12. Bd3 {[%clk 0:02:15.5]} 12... O-O
{[%clk 0:02:50.2]} 13. g3 {[%clk 0:02:12]} 13... dxc4 {[%clk 0:02:43.3]} 14.
bxc4 {[%clk 0:02:09.2]} 14... c5 {[%clk 0:02:44.3]} 15. Qb1 {[%clk 0:01:29.5]}
15... cxd4 {[%clk 0:02:41.3]} 16. Nb5 {[%clk 0:01:30.3]} 16... Nc5 {[%clk
0:02:35.5]} 17. Bxg6 {[%clk 0:00:48.2]} 17... Bxg6 {[%clk 0:02:35.5]} 18. Qb4
{[%clk 0:00:49.8]} 18... Na6 {[%clk 0:02:23.2]} 19. Qa3 {[%clk 0:00:45.6]} 19...
d3 {[%clk 0:02:23.1]} 20. Nd6 {[%clk 0:00:45.6]} 20... Qc7 {[%clk 0:02:17.1]}
21. Rab1 {[%clk 0:00:43.1]} 21... Nc5 {[%clk 0:02:17.6]} 22. Nd4 {[%clk
0:00:38.4]} 22... b6 {[%clk 0:02:15.6]} 23. f4 {[%clk 0:00:32.5]} 23... f6
{[%clk 0:02:06.5]} 24. Nb3 {[%clk 0:00:26.3]} 24... fxe5 {[%clk 0:02:05.7]} 25.
fxe5 {[%clk 0:00:26.7]} 25... Rxf1+ {[%clk 0:02:03.3]} 26. Rxf1 {[%clk
0:00:28.6]} 26... Rf8 {[%clk 0:01:58.9]} 27. Nxc5 {[%clk 0:00:26.8]} 27... Rxf1+
{[%clk 0:01:51.8]} 28. Kxf1 {[%clk 0:00:27.4]} 28... bxc5 {[%clk 0:01:52.6]} 29.
Ke1 {[%clk 0:00:23.9]} 29... Qb8 {[%clk 0:01:50.3]} 30. Qb3 {[%clk 0:00:19.4]}
30... Qd8 {[%clk 0:01:41.8]} 31. Qa3 {[%clk 0:00:12.9]} 31... Qg5 {[%clk
0:01:39.5]} 32. Kd1 {[%clk 0:00:03.9]} 32... Qe3 {[%clk 0:01:36.6]} 33. Nb7
{[%clk 0:00:03.2]} 0-1

[Event "*** Titled Tuesday Blitz"]
[Site "Chess.com"]
[Date "2019.08.06"]
[Round "1"]
[White "Kubas1010"]
[Black "Makalexa"]
[Result "1-0"]
[WhiteElo "2582"]
[BlackElo "2181"]
[TimeControl "180+2"]
[EndTime "13:06:58 PDT"]
[Termination "Kubas1010 won by resignation"]

1. d4 {[%clk 0:02:58.7]} 1... Nf6 {[%clk 0:03:00.3]} 2. c4 {[%clk 0:02:57.7]}
2... g6 {[%clk 0:03:00.6]} 3. Nc3 {[%clk 0:02:58.4]} 3... Bg7 {[%clk 0:03:01.9]}
4. e4 {[%clk 0:02:59.2]} 4... d6 {[%clk 0:03:03.3]} 5. Nf3 {[%clk 0:03:00.8]}
5... O-O {[%clk 0:03:04.3]} 6. h3 {[%clk 0:03:02.5]} 6... Na6 {[%clk 0:02:59.6]}
7. Be3 {[%clk 0:03:00.9]} 7... c5 {[%clk 0:02:58.8]} 8. d5 {[%clk 0:03:01.3]}
8... Nd7 {[%clk 0:02:56.3]} 9. Be2 {[%clk 0:02:57.7]} 9... Ne5 {[%clk
0:02:51.5]} 10. Nd2 {[%clk 0:02:57.6]} 10... f5 {[%clk 0:02:49.7]} 11. f4 {[%clk
0:02:57.8]} 11... Nf7 {[%clk 0:02:43]} 12. O-O {[%clk 0:02:57.1]} 12... fxe4
{[%clk 0:02:42.7]} 13. Ndxe4 {[%clk 0:02:57.7]} 13... h6 {[%clk 0:02:44.6]} 14.
Bg4 {[%clk 0:02:56.7]} 14... Nc7 {[%clk 0:02:38.5]} 15. f5 {[%clk 0:02:55.2]}
15... gxf5 {[%clk 0:02:07]} 16. Bxf5 {[%clk 0:02:55.2]} 16... Bxf5 {[%clk
0:02:08.9]} 17. Rxf5 {[%clk 0:02:56.7]} 17... Ne5 {[%clk 0:02:08.8]} 18. Rxf8+
{[%clk 0:02:51.4]} 18... Qxf8 {[%clk 0:02:08.9]} 19. Qe2 {[%clk 0:02:46]} 19...
Qf5 {[%clk 0:02:08.7]} 20. Ng3 {[%clk 0:02:32.2]} 20... Qg6 {[%clk 0:02:07.7]}
21. Nce4 {[%clk 0:02:32.8]} 21... Rf8 {[%clk 0:02:05.2]} 22. Rf1 {[%clk
0:02:33.2]} 22... Rxf1+ {[%clk 0:02:04.3]} 23. Qxf1 {[%clk 0:02:35.1]} 23... h5
{[%clk 0:02:00]} 24. b3 {[%clk 0:02:32.9]} 24... e6 {[%clk 0:01:54.4]} 25. dxe6
{[%clk 0:02:30.9]} 25... Nxe6 {[%clk 0:01:55]} 26. Nf5 {[%clk 0:02:25.9]} 26...
Kh7 {[%clk 0:01:50.2]} 27. Nexd6 {[%clk 0:02:25.2]} 27... Nd4 {[%clk 0:01:47.1]}
28. Bxd4 {[%clk 0:02:12.6]} 28... b6 {[%clk 0:01:33.9]} 29. Bxe5 {[%clk
0:02:01.3]} 29... Bxe5 {[%clk 0:01:18.6]} 30. Ne4 {[%clk 0:02:00.1]} 30... h4
{[%clk 0:01:09.2]} 31. Qf3 {[%clk 0:01:59.5]} 31... Qe8 {[%clk 0:00:54.7]} 32.
Nfd6 {[%clk 0:01:43.6]} 32... Bd4+ {[%clk 0:00:50.1]} 33. Kf1 {[%clk 0:01:43.6]}
33... Qe5 {[%clk 0:00:48.4]} 34. Qf5+ {[%clk 0:01:35.4]} 34... Kg7 {[%clk
0:00:39.1]} 35. Qxe5+ {[%clk 0:01:33.1]} 35... Bxe5 {[%clk 0:00:41]} 36. Nf5+
{[%clk 0:01:33.7]} 1-0